bitfinex-derivatives/quotes_BTCF0:USTF0_20250812
["timestamp","ask_amount","ask_price","bid_price","bid_amount"]
[1754996662639,0.15461756,118570.0,118560.0,1.35121256]
[1754996664438,0.29471756,118570.0,118560.0,1.35121256]
[1754996664740,0.15461756,118570.0,118560.0,1.35121256]
[1754996666750,0.45903237,118570.0,118560.0,1.24952741]
[1754996670739,0.47259237,118570.0,118560.0,1.24952741]
[1754996671447,0.16817756,118570.0,118560.0,1.24952741]
[1754996671746,0.47259237,118570.0,118560.0,1.24952741]
[1754996673548,0.47159237,118570.0,118560.0,1.24952741]
[1754996673754,0.47259237,118570.0,118560.0,1.24952741]
[1754996675246,0.16817756,118570.0,118560.0,1.24952741]
[1754996675434,0.47259237,118570.0,118560.0,1.24952741]
[1754996678249,0.50456237,118570.0,118560.0,1.24952741]
[1754996678448,0.52632237,118570.0,118560.0,1.24952741]
[1754996678646,0.22190756,118570.0,118560.0,1.24952741]
[1754996678850,0.52632237,118570.0,118560.0,1.24952741]
[1754996680754,0.52632237,118570.0,118560.0,0.1762726]
[1754996680950,0.52632237,118570.0,118560.0,1.24900741]
[1754996685460,0.22190756,118570.0,118560.0,1.24900741]
[1754996685661,0.52632237,118570.0,118560.0,1.24900741]
[1754996685960,0.52632237,118570.0,118560.0,0.48068741]
[1754996687662,0.52632237,118570.0,118560.0,0.39633481]
[1754996687860,0.52632237,118570.0,118560.0,0.38955481]
[1754996689267,0.52632237,118570.0,118560.0,0.47390801]
[1754996692161,0.52632237,118570.0,118560.0,0.1694932]
[1754996692361,0.52632237,118570.0,118560.0,0.08514]
[1754996692563,0.52632237,118570.0,118560.0,0.38955481]
[1754996692766,0.22190756,118570.0,118560.0,0.78510282]
[1754996692960,0.16817756,118570.0,118560.0,0.78510282]
[1754996693162,0.15461756,118570.0,118560.0,0.78510282]
[1754996694067,0.10411756,118570.0,118560.0,1.08951763]
[1754996694369,0.10511756,118570.0,118560.0,0.78510282]
[1754996694964,0.10411756,118570.0,118560.0,0.78510282]
[1754996695266,0.12677756,118570.0,118560.0,0.78510282]
[1754996696063,0.12577756,118570.0,118560.0,0.78510282]
[1754996699373,1.62577756,118570.0,118560.0,0.78510282]
[1754996700866,1.94486237,118570.0,118560.0,0.08514]
[1754996701061,1.97683237,118570.0,118560.0,1.15763481]
[1754996701263,2.28124718,118570.0,118560.0,0.02133]
[1754996701674,1.97683237,118570.0,118560.0,0.02133]
[1754996701872,1.97683237,118570.0,118560.0,0.0558]
[1754996702373,1.97683237,118570.0,118560.0,0.0668]
[1754996703276,1.97883237,118570.0,118560.0,0.0668]
[1754996704676,1.98083237,118570.0,118560.0,0.0668]
[1754996705477,1.98083237,118570.0,118560.0,0.0558]
[1754996707075,1.98083237,118570.0,118550.0,0.31541481]
[1754996707076,0.0843532,118560.0,118550.0,0.31541481]
[1754996707275,0.50913801,118560.0,118550.0,0.84258]
[1754996707476,0.50913801,118560.0,118550.0,1.14699481]
[1754996708270,0.50913801,118560.0,118550.0,1.23135511]
[1754996708778,0.51013801,118560.0,118550.0,1.23135511]
[1754996709780,0.2057232,118560.0,118550.0,1.23135511]
[1754996710076,0.51113801,118560.0,118550.0,1.23135511]
[1754996710278,0.51113801,118560.0,118550.0,1.17877511]
[1754996710479,0.51113801,118560.0,118550.0,1.22225511]
[1754996714878,0.44150801,118560.0,118550.0,1.22225511]
[1754996715078,0.0863532,118560.0,118550.0,1.22903511]
[1754996715282,0.1111532,118560.0,118550.0,1.22903511]
[1754996715475,0.2067232,118560.0,118550.0,1.22903511]
[1754996716179,0.51113801,118560.0,118550.0,1.22903511]
[1754996718174,0.2067232,118560.0,118550.0,1.22903511]
[1754996718379,0.51013801,118560.0,118550.0,1.22903511]
[1754996719286,0.50913801,118560.0,118550.0,1.22903511]
[1754996722990,0.0843532,118560.0,118550.0,1.52666992]
[1754996723289,0.1091532,118560.0,118550.0,1.53344992]
[1754996724490,0.1350932,118560.0,118550.0,1.22903511]
[1754996724690,0.2047232,118560.0,118550.0,1.22903511]
[1754996726293,0.50913801,118560.0,118550.0,1.22903511]
[1754996727092,0.2047232,118560.0,118550.0,1.22903511]
[1754996727590,0.50913801,118560.0,118550.0,1.22903511]
[1754996728988,0.2047232,118560.0,118550.0,1.22903511]
[1754996730189,0.50913801,118560.0,118550.0,1.22903511]
[1754996731094,0.50913801,118560.0,118550.0,0.9246203]
[1754996731296,0.50913801,118560.0,118550.0,1.24898511]
[1754996731595,0.5175481,118560.0,118550.0,1.24220511]
[1754996731894,0.21313329,118560.0,118550.0,1.24220511]
[1754996732094,0.5175481,118560.0,118550.0,1.24220511]
[1754996732795,0.50913801,118560.0,118550.0,1.24220511]
[1754996733192,0.50913801,118560.0,118550.0,1.24898511]
[1754996734396,0.51013801,118560.0,118550.0,1.24898511]
[1754996735797,0.51113801,118560.0,118550.0,1.24898511]
[1754996745506,0.51113801,118560.0,118550.0,0.9445703]
[1754996745698,0.51113801,118560.0,118550.0,1.24898511]
[1754996749810,1.6111532,118560.0,118550.0,1.24898511]
[1754996751310,1.6101532,118560.0,118550.0,1.24898511]
[1754996751610,0.1101532,118560.0,118550.0,1.24898511]
[1754996751813,0.1505732,118560.0,118550.0,1.24898511]
[1754996752111,0.2044832,118560.0,118550.0,1.24898511]
[1754996752302,0.2044832,118560.0,118550.0,1.24220511]
[1754996753111,0.2034832,118560.0,118550.0,1.24220511]
[1754996754013,0.2034832,118560.0,118550.0,1.24898511]
[1754996756413,0.1348632,118560.0,118550.0,1.24898511]
[1754996756708,0.1091532,118560.0,118550.0,1.55339992]
[1754996756914,0.1091532,118560.0,118550.0,1.24898511]
[1754996757212,0.1252432,118560.0,118550.0,1.24898511]
[1754996757910,0.337401,118570.0,118550.0,1.72211562]
[1754996758212,0.3623419,118570.0,118560.0,0.74273282]
[1754996758410,0.3623419,118570.0,118560.0,0.78528282]
[1754996759315,0.3633419,118570.0,118560.0,0.78528282]
[1754996761114,0.3623419,118570.0,118560.0,0.78528282]
[1754996762413,0.2530487,118570.0,118560.0,0.78528282]
[1754996762816,0.1686964,118570.0,118560.0,0.78528282]
[1754996763215,0.3373744,118580.0,118560.0,1.25839923]
[1754996763513,0.3616744,118580.0,118570.0,1.20657091]
[1754996765517,0.4343444,118580.0,118570.0,1.20657091]
[1754996766016,0.4343444,118580.0,118570.0,1.21509176]
[1754996766322,0.4353444,118580.0,118570.0,1.21509176]
[1754996766809,0.4343444,118580.0,118570.0,1.21509176]
[1754996767010,0.4363444,118580.0,118570.0,1.21509176]
[1754996767211,0.1949841,118580.0,118570.0,1.51950657]
[1754996767512,0.1949841,118580.0,118570.0,1.21509176]
[1754996768016,0.2115241,118580.0,118570.0,1.21509176]
[1754996768419,0.2115241,118580.0,118570.0,0.91067695]
[1754996768612,0.2115241,118580.0,118570.0,1.25757176]
[1754996768915,0.2345741,118580.0,118570.0,1.25757176]
[1754996769317,1.7345741,118580.0,118570.0,1.25757176]
[1754996769516,1.7115241,118580.0,118570.0,1.23737176]
[1754996769716,1.7253841,118580.0,118570.0,1.24837176]
[1754996770417,1.7584641,118580.0,118570.0,1.24837176]
[1754996774322,1.7115241,118580.0,118570.0,1.55278657]
[1754996774623,1.7115241,118580.0,118570.0,1.24837176]
[1754996775117,1.6706841,118580.0,118570.0,1.55278657]
[1754996775324,0.1949841,118580.0,118570.0,1.5701308]
[1754996777417,0.1106403,118580.0,118570.0,1.5701308]
[1754996778723,0.1271803,118580.0,118570.0,1.5701308]
[1754996778921,0.1363703,118580.0,118570.0,1.5701308]
[1754996779324,0.1502303,118580.0,118570.0,1.5701308]
[1754996779619,0.1502303,118580.0,118570.0,1.26571599]
[1754996779826,0.1502303,118580.0,118570.0,1.5701308]
[1754996780022,0.1833103,118580.0,118570.0,1.5701308]
[1754996783925,0.1833103,118580.0,118570.0,1.55278657]
[1754996785032,0.1363703,118580.0,118570.0,1.55278657]
[1754996786833,0.1502303,118580.0,118570.0,1.55278657]
[1754996787233,0.1363703,118580.0,118570.0,1.55278657]
[1754996790427,0.05203,118580.0,118570.0,1.55278657]
[1754996790628,0.127179,118580.0,118570.0,1.55278657]
[1754996791831,0.1106391,118580.0,118570.0,1.55278657]
[1754996799954,0.1106391,118580.0,118570.0,0.94395695]
[1754996800252,0.1106391,118580.0,118570.0,1.56263657]
[1754996801952,0.1257391,118580.0,118570.0,1.56263657]
[1754996804554,0.0414,118580.0,118570.0,1.56263657]
[1754996804751,0.086339,118580.0,118570.0,1.55585657]
[1754996804954,0.125739,118580.0,118570.0,1.56263657]
[1754996805154,0.134949,118580.0,118570.0,1.56263657]
[1754996806758,0.05061,118580.0,118570.0,1.56263657]
[1754996808054,0.05061,118580.0,118570.0,0.95380695]
[1754996808257,0.05061,118580.0,118570.0,1.56263657]
[1754996809061,0.05061,118580.0,118570.0,0.95380695]
[1754996809253,0.0263,118580.0,118570.0,1.56263657]
[1754996810064,0.002,118580.0,118570.0,1.56263657]
[1754996810757,0.0263,118580.0,118570.0,1.56263657]
[1754996811461,0.002,118580.0,118570.0,1.56263657]
[1754996811660,0.0263,118580.0,118570.0,1.56263657]
[1754996811959,0.0414,118580.0,118570.0,1.56263657]
[1754996812662,0.125739,118580.0,118570.0,1.56263657]
[1754996813159,0.0414,118580.0,118570.0,1.56263657]
[1754996813361,0.125739,118580.0,118570.0,1.56263657]
[1754996814365,0.0414,118580.0,118570.0,1.56263657]
[1754996815862,0.0263,118580.0,118570.0,1.56263657]
[1754996816054,0.002,118580.0,118570.0,1.56263657]
[1754996816664,0.0263,118580.0,118570.0,1.56263657]
[1754996817760,0.002,118580.0,118570.0,1.56263657]
[1754996818958,0.0263,118580.0,118570.0,1.56263657]
[1754996822768,0.08731,118580.0,118570.0,1.56263657]
[1754996822962,0.11982,118580.0,118570.0,1.56263657]
[1754996823766,0.066,118580.0,118570.0,1.56263657]
[1754996824068,0.05135,118580.0,118570.0,1.56263657]
[1754996827569,0.0263,118580.0,118570.0,1.56263657]
[1754996828366,0.46156391,118580.0,118570.0,0.48396176]
[1754996828560,0.50872391,118580.0,118570.0,1.25080176]
[1754996828961,0.2043091,118580.0,118570.0,1.25080176]
[1754996829361,0.2043091,118580.0,118570.0,1.25758176]
[1754996831872,0.1571491,118580.0,118570.0,1.25080176]
[1754996832070,0.2043091,118580.0,118570.0,1.25080176]
[1754996833573,0.2043091,118580.0,118570.0,1.55521657]
[1754996833873,0.2043091,118580.0,118570.0,1.56199657]
[1754996835073,0.2043091,118580.0,118570.0,0.95316695]
[1754996835271,0.2043091,118580.0,118570.0,1.56199657]
[1754996845583,0.1105991,118580.0,118570.0,1.56199657]
[1754996855388,0.46200391,118580.0,118570.0,0.1710262]
[1754996855590,0.2046991,118580.0,118570.0,1.24216101]
[1754996855789,0.50911391,118580.0,118570.0,1.24216101]
[1754996855990,0.2046991,118580.0,118570.0,1.24216101]
[1754996856290,0.50911391,118580.0,118570.0,1.24216101]
[1754996858096,0.2046991,118580.0,118570.0,1.24216101]
[1754996859092,0.2046991,118580.0,118570.0,1.55335582]
[1754996859399,0.1724391,118580.0,118570.0,1.55335582]
[1754996859599,0.2046991,118580.0,118570.0,1.55335582]
[1754996859894,0.2046991,118580.0,118570.0,0.34769481]
[1754996860098,0.0843462,118570.0,118560.0,1.12191197]
[1754996860300,0.50862101,118570.0,118560.0,0.36623197]
[1754996860500,0.50862101,118570.0,118560.0,0.40953197]
[1754996861409,0.50862101,118570.0,118560.0,0.04043716]
[1754996861703,0.50862101,118570.0,118560.0,0.34485197]
[1754996861899,0.50862101,118570.0,118560.0,0.36087481]
[1754996863194,0.50862101,118570.0,118560.0,0.37187481]
[1754996864097,0.50862101,118570.0,118560.0,0.38128481]
[1754996864803,0.50862101,118570.0,118560.0,0.07687]
[1754996864995,0.50862101,118570.0,118560.0,0.38128481]
[1754996865905,0.50962101,118570.0,118560.0,0.38128481]
[1754996866504,0.51062101,118570.0,118560.0,0.38128481]
[1754996870004,0.65072101,118570.0,118560.0,0.38128481]
[1754996872896,0.65072101,118570.0,118560.0,0.30441481]
[1754996873097,0.65072101,118570.0,118560.0,0.36087481]
[1754996873504,0.65072101,118570.0,118560.0,0.05646]
[1754996874011,0.65072101,118570.0,118560.0,0.02304]
[1754996874204,0.0843533,118560.0,118550.0,0.03342]
[1754996874513,0.50862811,118560.0,118550.0,0.06746]
[1754996874809,1.27534811,118560.0,118550.0,0.37187481]
[1754996875006,1.27534811,118560.0,118550.0,0.02304]
[1754996875202,1.27534811,118560.0,118550.0,0.32745481]
[1754996875516,1.27534811,118560.0,118550.0,0.36087481]
[1754996876001,0.0843675,118540.0,118530.0,0.34883481]
[1754996876310,0.2042275,118540.0,118530.0,0.39213481]
[1754996876511,0.50864231,118540.0,118530.0,0.39213481]
[1754996876713,0.51700372,118540.0,118530.0,0.39213481]
[1754996877416,0.51700372,118540.0,118530.0,0.39413481]
[1754996878004,0.51800372,118540.0,118530.0,0.39213481]
[1754996878204,0.51800372,118540.0,118530.0,0.39313481]
[1754996879014,0.51900372,118540.0,118530.0,0.39213481]
[1754996879205,0.51900372,118540.0,118530.0,0.37028481]
[1754996879408,0.51900372,118540.0,118530.0,0.38128481]
[1754996879712,0.51900372,118540.0,118530.0,0.39213481]
[1754996881816,0.51064231,118540.0,118530.0,0.39213481]
[1754996882115,0.2062275,118540.0,118530.0,0.48328931]
[1754996884013,0.51064231,118540.0,118530.0,0.39891481]
[1754996884216,0.51064231,118540.0,118530.0,0.39213481]
[1754996886016,0.51064231,118540.0,118530.0,0.08772]
[1754996886419,0.51064231,118540.0,118530.0,0.39213481]
[1754996887020,0.2062275,118540.0,118530.0,0.47650931]
[1754996887215,0.2062275,118540.0,118530.0,0.39213481]
[1754996887417,0.51064231,118540.0,118530.0,0.39213481]
[1754996887914,0.2062275,118540.0,118530.0,0.39213481]
[1754996888121,0.2062275,118540.0,118530.0,0.47650931]
[1754996888515,0.1361375,118540.0,118530.0,0.78092412]
[1754996888722,0.002,118540.0,118530.0,0.78770412]
[1754996890713,0.002,118540.0,118530.0,0.58480283]
[1754996890909,0.001,118540.0,118530.0,0.58580283]
[1754996891109,0.2780754,118550.0,118530.0,0.75454733]
[1754996891312,0.2780754,118550.0,118540.0,1.31068573]
[1754996892222,0.0843609,118550.0,118540.0,1.31068573]
[1754996892612,0.38134397,118560.0,118550.0,0.0843603]
[1754996892823,0.40689397,118560.0,118550.0,0.53133863]
[1754996893016,0.42044397,118560.0,118550.0,0.58408863]
[1754996893216,0.45413397,118560.0,118550.0,0.58408863]
[1754996894022,0.47645397,118560.0,118550.0,0.58408863]
[1754996895426,0.39209397,118560.0,118550.0,0.58408863]
[1754996897719,0.22337397,118560.0,118550.0,0.58408863]
[1754996897925,0.22337397,118560.0,118550.0,0.59266447]
[1754996898120,0.15381397,118560.0,118550.0,0.59266447]
[1754996898324,0.06946017,118560.0,118550.0,0.59266447]
[1754996898531,0.20105337,118560.0,118550.0,0.59266447]
[1754996899425,0.22337337,118560.0,118550.0,0.59266447]
[1754996900724,0.2044532,118560.0,118550.0,0.59266447]
[1754996901028,0.2044532,118560.0,118550.0,0.61006565]
[1754996902930,0.2044532,118560.0,118550.0,0.20413732]
[1754996903331,0.2044532,118560.0,118550.0,0.61006565]
[1754996907724,0.05054,118560.0,118550.0,0.61006565]
[1754996907925,0.2780399,118570.0,118550.0,0.77878145]
[1754996908127,0.2780399,118570.0,118560.0,0.54303153]
[1754996908319,0.2780399,118570.0,118560.0,0.58408153]
[1754996908929,0.2943999,118570.0,118560.0,0.58408153]
[1754996909124,0.3035899,118570.0,118560.0,0.58408153]
[1754996909325,0.1686976,118570.0,118560.0,0.58408153]
[1754996909529,0.1936876,118570.0,118560.0,0.58408153]
[1754996909732,0.1093368,118570.0,118560.0,1.35088153]
[1754996910734,0.1093368,118570.0,118560.0,0.9449532]
[1754996910923,0.1093368,118570.0,118560.0,1.35088153]
[1754996912432,0.1256968,118570.0,118560.0,1.35088153]
[1754996914932,0.1256961,118570.0,118560.0,1.35088153]
[1754996915125,0.1811261,118570.0,118560.0,1.35088153]
[1754996915327,0.2035161,118570.0,118560.0,1.35088153]
[1754996920636,0.1709161,118570.0,118560.0,1.35088153]
[1754996920832,0.1343061,118570.0,118560.0,1.35088153]
[1754996921636,0.1088161,118570.0,118560.0,1.35088153]
[1754996921938,0.02447,118570.0,118560.0,1.75680986]
[1754996922136,0.02447,118570.0,118560.0,1.35088153]
[1754996922834,0.1088161,118570.0,118560.0,1.35088153]
[1754996924634,0.1088161,118570.0,118560.0,0.9449532]
[1754996924837,0.1343061,118570.0,118560.0,1.35088153]
[1754996925026,0.1485261,118570.0,118560.0,1.35088153]
[1754996929037,0.02447,118570.0,118560.0,1.35088153]
[1754996929243,0.35643562,118580.0,118570.0,0.0843461]
[1754996929441,0.38090562,118580.0,118570.0,0.58603443]
[1754996929747,0.40639562,118580.0,118570.0,0.58603443]
[1754996929942,0.45321562,118580.0,118570.0,0.58603443]
[1754996930443,0.45421562,118580.0,118570.0,0.58603443]
[1754996930744,0.45521562,118580.0,118570.0,0.58603443]
[1754996931143,0.18974452,118580.0,118570.0,0.58603443]
[1754996931449,0.02106142,118580.0,118570.0,0.58603443]
[1754996932347,0.10540032,118580.0,118570.0,0.58603443]
[1754996932537,0.12987032,118580.0,118570.0,0.58603443]
[1754996940149,0.1108089,118580.0,118570.0,0.58603443]
[1754996940649,0.1108089,118580.0,118570.0,0.78867008]
[1754996940949,0.02647,118580.0,118570.0,0.78867008]
[1754996941252,0.02049277,118580.0,118570.0,0.78867008]
[1754996941446,0.002,118580.0,118570.0,0.78867008]
[1754996941942,0.02647,118580.0,118570.0,0.78867008]
[1754996942848,0.002,118580.0,118570.0,0.78867008]
[1754996943047,0.002,118580.0,118570.0,1.09295207]
[1754996943348,0.002,118580.0,118570.0,0.78867008]
[1754996943743,0.0249,118580.0,118570.0,0.78867008]
[1754996944652,0.0249,118580.0,118570.0,0.58575999]
[1754996946750,0.109239,118580.0,118570.0,0.58575999]
[1754996947651,0.0249,118580.0,118570.0,0.58575999]
[1754996948649,0.109239,118580.0,118570.0,0.58575999]
[1754996949352,0.0249,118580.0,118570.0,0.58575999]
[1754996950252,0.109239,118580.0,118570.0,0.58575999]
[1754996950552,0.0249,118580.0,118570.0,0.58575999]
[1754996951452,0.1092389,118580.0,118570.0,0.58575999]
[1754996951851,0.0249,118580.0,118570.0,0.58575999]
[1754996953358,0.109239,118580.0,118570.0,0.58575999]
[1754996953752,0.0249,118580.0,118570.0,0.58575999]
[1754996956957,0.0249,118580.0,118570.0,0.1801061]
[1754996957158,0.0249,118580.0,118570.0,0.58575999]
[1754996957454,0.002,118580.0,118570.0,0.58575999]
[1754996957660,0.0249,118580.0,118570.0,0.58575999]
[1754996960160,0.0249,118580.0,118570.0,0.1801061]
[1754996960460,0.0249,118580.0,118570.0,0.58575999]
[1754996961061,0.0249,118580.0,118570.0,0.6027566]
[1754996962768,0.1092389,118580.0,118570.0,0.6027566]
[1754996962968,0.1244989,118580.0,118570.0,0.6027566]
[1754996963167,0.1557489,118580.0,118570.0,0.5849766]
[1754996963378,0.1557489,118580.0,118570.0,0.93483271]
[1754996963379,0.2041089,118580.0,118570.0,0.93483271]
[1754996963565,0.2041089,118580.0,118570.0,1.3514866]
[1754996964670,0.2041089,118580.0,118570.0,0.9288361]
[1754996964870,0.2041089,118580.0,118570.0,0.1514761]
[1754996965068,0.2041089,118580.0,118570.0,0.9081561]
[1754996965873,0.2041089,118580.0,118570.0,0.1417961]
[1754996966175,0.2041089,118580.0,118570.0,0.9081561]
[1754996967068,0.2041089,118580.0,118570.0,0.9191561]
[1754996967274,0.2041089,118580.0,118570.0,0.9056261]
[1754996967772,0.2041089,118580.0,118570.0,0.9166261]
[1754996968576,0.2041089,118580.0,118570.0,0.9258661]
[1754996968866,0.2041089,118580.0,118570.0,0.9367161]
[1754996970969,0.2041089,118580.0,118570.0,1.34236999]
[1754996972868,0.2041089,118580.0,118570.0,1.34914999]
[1754996974972,0.2041089,118580.0,118570.0,0.9434961]
[1754996975176,0.2041089,118580.0,118570.0,1.34914999]
[1754996975480,0.1705289,118580.0,118570.0,1.34914999]
[1754996975678,0.1557489,118580.0,118570.0,1.34914999]
[1754996976178,0.1557489,118580.0,118570.0,0.9434961]
[1754996976479,0.1557489,118580.0,118570.0,1.34914999]
[1754996977078,0.2050289,118580.0,118570.0,1.34914999]
[1754996978277,0.1705689,118580.0,118570.0,1.34914999]
[1754996978577,0.0863389,118580.0,118570.0,1.34236999]
[1754996978778,0.1089489,118580.0,118570.0,1.24781232]
[1754996979073,0.2046489,118580.0,118570.0,0.9434961]
[1754996979279,0.2046489,118580.0,118570.0,1.24781232]
[1754996979675,0.2036489,118580.0,118570.0,1.24781232]
[1754996980071,0.2026489,118580.0,118570.0,1.24781232]
[1754996983874,0.50696512,118580.0,118570.0,1.24781232]
[1754996984070,0.50696512,118580.0,118570.0,1.24103232]
[1754996984782,0.81128134,118580.0,118570.0,1.23003232]
[1754996984976,0.81128134,118580.0,118570.0,1.24103232]
[1754996985172,0.0843462,118570.0,118560.0,0.78333423]
[1754996985379,0.43508242,118570.0,118560.0,1.17487045]
[1754996985578,0.50697242,118570.0,118560.0,1.17487045]
[1754996985780,0.50697242,118570.0,118560.0,0.10423423]
[1754996985986,0.52546434,118570.0,118560.0,0.05625]
[1754996986283,0.52546434,118570.0,118560.0,0.39153622]
[1754996986484,0.53379051,118570.0,118560.0,0.39153622]
[1754996986683,0.22947429,118570.0,118560.0,0.08722]
[1754996987387,0.22114812,118570.0,118560.0,0.08822]
[1754996987882,0.22114812,118570.0,118560.0,0.1725733]
[1754996988089,0.22114812,118570.0,118560.0,0.57849068]
[1754996988486,0.22214812,118570.0,118560.0,1.34381068]
[1754996988688,0.22214812,118570.0,118560.0,0.57749068]
[1754996988889,0.22214812,118570.0,118560.0,1.34381068]
[1754996989189,0.22314812,118570.0,118560.0,0.57749068]
[1754996989388,0.22314812,118570.0,118560.0,1.34381068]
[1754996989782,0.22314812,118570.0,118560.0,0.57749068]
[1754996989984,0.22314812,118570.0,118560.0,1.34381068]
[1754996990792,0.22314812,118570.0,118560.0,0.57749068]
[1754996991091,0.22314812,118570.0,118560.0,1.34385068]
[1754996991494,0.22314812,118570.0,118560.0,0.9379333]
[1754996991793,0.22314812,118570.0,118560.0,1.34385068]
[1754996994396,0.22314812,118570.0,118560.0,1.35063068]
[1754996996699,0.22314812,118570.0,118560.0,0.9447133]
[1754996996888,0.22314812,118570.0,118560.0,1.35063068]
[1754996998599,0.0863462,118570.0,118560.0,1.35063068]
[1754996998899,0.1089562,118570.0,118560.0,1.35063068]
[1754996999600,0.1079562,118570.0,118560.0,1.35063068]
[1754997000499,0.1069562,118570.0,118560.0,1.35063068]
[1754997001099,0.59375358,118570.0,118560.0,0.08722]
[1754997001296,0.60857358,118570.0,118560.0,0.1715734]
[1754997001801,0.60857358,118570.0,118560.0,0.08722]
[1754997002005,0.2026562,118570.0,118560.0,0.08722]
[1754997002590,0.2036562,118570.0,118560.0,0.1715733]
[1754997003905,0.2046562,118570.0,118560.0,0.1715733]
[1754997008403,0.2046562,118570.0,118560.0,0.08722]
[1754997008705,0.61057358,118570.0,118560.0,0.08722]
[1754997009602,0.61057358,118570.0,118560.0,0.1715734]
[1754997009913,0.61057358,118570.0,118560.0,0.08722]
[1754997010607,0.50909038,118570.0,118560.0,0.39165418]
[1754997011307,0.50909038,118570.0,118560.0,0.08722]
[1754997012303,0.0843534,118560.0,118550.0,1.0193919]
[1754997012503,0.43751758,118560.0,118550.0,1.32382608]
[1754997012809,0.50782758,118560.0,118550.0,1.32382608]
[1754997013007,0.50782758,118560.0,118550.0,1.36799608]
[1754997014009,0.81226176,118560.0,118550.0,0.03317]
[1754997014209,0.81226176,118560.0,118550.0,0.05538]
[1754997014711,0.60942348,118560.0,118550.0,0.05538]
[1754997015012,0.60942348,118560.0,118550.0,0.02221]
[1754997015403,0.0843605,118550.0,118540.0,0.14555447]
[1754997015710,0.2034005,118550.0,118540.0,0.18858447]
[1754997016503,0.2034005,118550.0,118540.0,0.10421787]
[1754997016807,0.0843676,118540.0,118530.0,1.50983888]
[1754997017008,0.2034076,118540.0,118530.0,1.0636055]
[1754997017709,0.2034076,118540.0,118530.0,0.9792322]
[1754997017902,0.2034076,118540.0,118530.0,1.0222622]
[1754997018103,0.28075951,118540.0,118530.0,0.9378947]
[1754997018307,0.61784395,118540.0,118530.0,0.0762]
[1754997018510,0.61784395,118540.0,118530.0,0.02221]
[1754997018712,0.0843747,118530.0,118520.0,0.06100695]
[1754997019010,0.2034147,118530.0,118520.0,0.10403695]
[1754997019714,0.2034147,118530.0,118520.0,0.18841875]
[1754997020011,0.2034147,118530.0,118520.0,0.59544883]
[1754997020412,0.2034147,118530.0,118520.0,0.18941875]
[1754997020712,0.2034147,118530.0,118520.0,0.59544883]
[1754997022110,0.2034147,118530.0,118520.0,0.51106703]
[1754997022318,0.2034147,118530.0,118520.0,0.10503695]
[1754997023315,0.22234478,118530.0,118520.0,0.0882]
[1754997023625,0.22234478,118530.0,118520.0,0.57861188]
[1754997024417,0.22234478,118530.0,118520.0,0.1725818]
[1754997024822,0.22234478,118530.0,118520.0,0.49423008]
[1754997025125,0.22234478,118530.0,118520.0,0.0882]
[1754997025630,0.2034147,118530.0,118520.0,0.1725818]
[1754997025831,0.2034147,118530.0,118520.0,0.0772]
[1754997026031,0.2034147,118530.0,118520.0,0.0882]
[1754997028225,0.2034147,118530.0,118520.0,0.03406]
[1754997028226,0.60944478,118530.0,118520.0,0.03406]
[1754997028429,1.37672478,118530.0,118520.0,0.02321]
[1754997028625,1.37672478,118530.0,118520.0,0.05638]
[1754997029233,0.9706947,118530.0,118520.0,0.05638]
[1754997029434,1.37672478,118530.0,118520.0,0.05638]
[1754997030328,1.37672478,118530.0,118520.0,0.001]
[1754997031330,0.9706947,118530.0,118520.0,0.001]
[1754997031632,1.37672478,118530.0,118520.0,0.001]
[1754997033132,0.9706947,118530.0,118520.0,0.001]
[1754997033335,0.9706947,118530.0,118520.0,0.03334]
[1754997033522,1.37672478,118530.0,118520.0,0.05537]
[1754997034035,1.37672478,118530.0,118520.0,0.07566]
[1754997034433,0.9706947,118530.0,118520.0,0.07566]
[1754997034835,1.37672478,118530.0,118520.0,0.07566]
[1754997035134,1.37672478,118530.0,118520.0,0.06466]
[1754997035435,1.37672478,118530.0,118520.0,0.05537]
[1754997036531,1.37672478,118530.0,118520.0,0.02303]
[1754997037835,1.37672478,118530.0,118520.0,0.001]
[1754997039625,1.39515161,118530.0,118520.0,0.001]
[1754997041138,1.39662052,118530.0,118520.0,0.001]
[1754997041538,1.39662052,118530.0,118500.0,0.03234]
[1754997041539,0.084389,118510.0,118500.0,0.03234]
[1754997041730,1.31125908,118510.0,118500.0,0.06366]
[1754997041930,1.38112908,118510.0,118500.0,0.07466]
[1754997042434,0.975099,118510.0,118500.0,0.07466]
[1754997042936,0.975099,118510.0,118500.0,0.07766]
[1754997043139,0.975099,118510.0,118500.0,0.08166]
[1754997043436,1.38112908,118510.0,118500.0,0.007]
[1754997048036,0.0844104,118480.0,118470.0,6.835e-05]
[1754997048234,0.9752404,118480.0,118470.0,6.835e-05]
[1754997048531,1.38127048,118480.0,118470.0,6.835e-05]
[1754997048730,0.0844318,118450.0,118440.0,0.04910932]
[1754997048932,0.60949188,118450.0,118440.0,0.01676932]
[1754997049234,1.38221188,118450.0,118440.0,0.01676932]
[1754997049735,0.0844389,118440.0,118430.0,0.0001]
[1754997049924,0.57696898,118440.0,118430.0,0.0001]
[1754997050131,0.60949898,118440.0,118430.0,0.03244]
[1754997050328,0.2034689,118440.0,118430.0,0.159056]
[1754997050634,0.9769489,118440.0,118430.0,0.08561]
[1754997051131,0.0844603,118410.0,118400.0,0.1862856]
[1754997051331,0.2997163,118420.0,118410.0,0.0844603]
[1754997051636,0.18004212,118420.0,118410.0,0.1699703]
[1754997051838,0.20357212,118420.0,118410.0,0.1699703]
[1754997052338,0.97741212,118420.0,118410.0,0.1699703]
[1754997052742,0.97741212,118420.0,118410.0,0.1709703]
[1754997052940,0.97741212,118420.0,118410.0,0.18815371]
[1754997053141,0.94488212,118420.0,118410.0,0.18815371]
[1754997053341,0.97841212,118420.0,118410.0,0.1709703]
[1754997053638,0.97841212,118420.0,118410.0,0.17946643]
[1754997054341,0.97841212,118420.0,118410.0,0.1709703]
[1754997055529,1.3844422,118420.0,118410.0,0.1709703]
[1754997056033,1.3844422,118420.0,118410.0,0.17952993]
[1754997056234,0.97841212,118420.0,118410.0,0.17952993]
[1754997056435,0.97841212,118420.0,118410.0,0.1709703]
[1754997057547,0.93191212,118420.0,118410.0,0.1777503]
[1754997057733,0.08554212,118420.0,118410.0,0.56600038]
[1754997057935,0.20456742,118420.0,118410.0,0.1709703]
[1754997058335,0.20456742,118420.0,118410.0,0.1601203]
[1754997058546,0.6105975,118420.0,118410.0,0.1601203]
[1754997058843,0.20456742,118420.0,118410.0,0.0854603]
[1754997059043,0.6105975,118420.0,118410.0,0.0854603]
[1754997059238,0.97964742,118420.0,118410.0,0.1398303]
[1754997059438,0.97964742,118420.0,118410.0,0.1601203]
[1754997059439,0.97972742,118420.0,118410.0,0.1601203]
[1754997059649,0.20456742,118420.0,118410.0,0.1601203]
[1754997059839,0.98008742,118420.0,118410.0,0.57700038]
[1754997060038,0.98008742,118420.0,118410.0,0.1709703]
[1754997061348,0.20456742,118420.0,118410.0,0.1709703]
[1754997061846,0.98008742,118420.0,118410.0,0.1709703]